fUST/lending_fUST_20240606
["ID","MTS","AMOUNT","RATE_DAILY","PERIOD"]
[328627925,1717627846513,-642.22318542,0.00020593,2]
[328627927,1717627858671,500.0,0.00029659,40]
[328627928,1717627858942,500.0,0.00029659,40]
[328627929,1717627880542,187.72279245,9.999e-05,2]
[328627930,1717627888222,411.29938372,9.999e-05,2]
[328627943,1717627923355,1342.19305774,9.999e-05,2]
[328628164,1717628704628,-1920.8,0.00014992,2]
[328628168,1717628789755,-411.29938372,0.00014991,2]
[328628169,1717628789781,-16188.8729707,0.00018522,2]
[328628170,1717628789801,-223.033374,0.0001868,2]
[328628171,1717628789823,-2591.09380773,0.000189,2]
[328628172,1717628791477,710.4329038,0.00018,2]
[328628180,1717628829449,1099.5217014,0.00015,2]
[328628185,1717628970754,20532.16797016,0.00017,4]
[328628213,1717629032947,-622.69606142,0.00019078,2]
[328628214,1717629032957,-168.220294,0.00019178,2]
[328628215,1717629032966,-931.42086602,0.0002,2]
[328628216,1717629032977,-1354.21950592,0.00020364,2]
[328628217,1717629032987,-4235.50878984,0.00020365,2]
[328628218,1717629032996,-464.46388973,0.00020493,2]
[328628219,1717629033005,-512.04932437,0.00020493,2]
[328628220,1717629033015,-30598.438142,0.00020593,2]
[328628221,1717629033024,-286.47075578,0.00020593,2]
[328628222,1717629033033,-153.0,0.00020658,2]
[328628223,1717629033042,-308.8927497,0.00020741,2]
[328628224,1717629033051,-2071.63731922,0.00021298,2]
[328628225,1717629033060,-4233.55928481,0.00021299,2]
[328628226,1717629033069,-464.46388972,0.000213,2]
[328628227,1717629033079,-500.0,0.00021397,2]
[328628228,1717629033088,-500.0,0.00021397,2]
[328628229,1717629033098,-436.40413708,0.00021397,2]
[328628230,1717629033107,-153.0,0.00021397,2]
[328628231,1717629033117,-311.6568079,0.00021397,2]
[328628232,1717629033126,-17108.51445814,0.00021398,2]
[328628233,1717629033135,-512.04932437,0.00021408,2]
[328628234,1717629033145,-3300.0,0.000215,2]
[328628235,1717629033154,-10391.48098512,0.00021641,2]
[328628250,1717629038628,-2069.86690726,0.00021641,2]
[328628251,1717629038638,-402.31220179,0.00021643,2]
[328628252,1717629038647,-500.0,0.00021643,2]
[328628253,1717629038656,-436.5253027,0.00021643,2]
[328628254,1717629038665,-312.9683551,0.00021643,2]
[328628255,1717629038675,-500.0,0.00021643,2]
[328628256,1717629038684,-541.23451748,0.00021643,2]
[328628257,1717629038693,-500.0,0.00021643,2]
[328628258,1717629038702,-500.0,0.00021643,2]
[328628260,1717629038711,-500.0,0.00021643,2]
[328628262,1717629038720,-285.57111562,0.00021643,2]
[328628263,1717629038729,-170.58883039,0.00021643,2]
[328628265,1717629038738,-136.22226031,0.00021643,2]
[328628266,1717629038750,-102.71334908,0.00021643,2]
[328628267,1717629038759,-500.0,0.00021643,2]
[328628268,1717629038768,-500.0,0.00021643,2]
[328628269,1717629038778,-5192.05192949,0.00021644,2]
[328628289,1717629042481,-1178.78100576,0.00021644,2]
[328628290,1717629042493,-6514.35895408,0.00021644,2]
[328628291,1717629042503,-8362.88706172,0.00021644,2]
[328628292,1717629042515,-565.29472508,0.00021644,2]
[328628293,1717629042524,-166.666666,0.00021918,2]
[328628294,1717629042534,-620.00767589,0.00022017,2]
[328628295,1717629042543,-624.16065565,0.00022105,2]
[328628296,1717629042552,-464.46388972,0.00022106,2]
[328628297,1717629042561,-512.04932437,0.00022324,2]
[328628298,1717629042570,-166.666666,0.00022431,2]
[328628299,1717629042588,-1320.27222573,0.000225,7]
[328628300,1717629042600,-270.0,0.000225,2]
[328628301,1717629042610,-22008.71464855,0.000225,2]
[328628302,1717629042624,-511.1056432,0.000225,2]
[328628303,1717629042637,-4152.99830747,0.000225,2]
[328628304,1717629042649,-4416.7290705,0.000225,2]
[328628348,1717629048540,286.47075578,0.00017,2]
[328628349,1717629066504,286.47075578,0.00017,2]
[328628350,1717629070877,1500.37733008,9.999e-05,2]
[328628351,1717629090496,286.47075578,0.00017,2]
[328628352,1717629097223,187.72279245,9.999e-05,2]
[328628353,1717629100633,1281.11111819,9.999e-05,2]
[328628354,1717629110508,286.47075578,0.00017,2]
[328628355,1717629113600,157.03683052,0.00015,2]
[328628356,1717629120755,302.73262901,9.999e-05,2]
[328628357,1717629130508,228.83183218,0.00017,2]
[328628368,1717629233360,371.57647661,0.00029659,40]
[328628370,1717629471135,606.170302,0.000185,2]
[328628371,1717629510008,533.3346444,0.00029659,40]
[328628377,1717629832475,-3069.90171711,0.00018945,2]
[328628378,1717629832496,-411.29938372,0.00018945,2]
[328628379,1717629832517,-2762.28835921,0.00018945,2]
[328628380,1717629832546,-6119.5225709,0.00018945,2]
[328628381,1717629841283,59539.43143747,9.999e-05,2]
[328628512,1717630232009,-1099.15669674,0.00015,2]
[328628513,1717630232020,-212.9952081,0.00017925,2]
[328628514,1717630232028,-223.0333758,0.00018475,2]
[328628515,1717630232039,-3069.90171711,0.00018746,2]
[328628516,1717630232049,-19295.71550655,0.00018747,2]
[328628517,1717630232060,-7913.37404345,0.00018747,2]
[328628518,1717630232071,-448.71420494,0.00018749,2]
[328628519,1717630232081,-6758.91927669,0.00018849,2]
[328628520,1717630232092,-1727.39587182,0.000189,2]
[328628521,1717630232102,-13224.19228562,0.00018951,2]
[328628522,1717630232113,-2233.31871336,0.00018951,2]
[328628533,1717630237846,-790.9224384,0.00018951,2]
[328628535,1717630237987,-3331.31334338,0.00018951,2]
[328628536,1717630237999,-1901.804382,0.00018951,2]
[328628537,1717630238011,-3418.44883724,0.00018951,2]
[328628538,1717630238021,-152.69404178,0.000193,2]
[328628539,1717630238031,-265.83975183,0.000199,2]
[328628540,1717630238040,-448.71420493,0.00019913,2]
[328628541,1717630238050,-224.89733258,0.0002,2]
[328628542,1717630238060,-931.42086602,0.0002,2]
[328628543,1717630238069,-174.66603353,0.0002,2]
[328628544,1717630238082,-1179.55347239,0.0002,2]
[328628545,1717630238092,-265.83975183,0.00020636,2]
[328628546,1717630238101,-2071.63731922,0.00021,2]
[328628547,1717630238112,-448.71420493,0.00021078,2]
[328628548,1717630238122,-265.83975183,0.00021372,2]
[328628549,1717630238132,-150.0,0.000215,2]
[328628550,1717630238142,-166.666666,0.00021918,2]
[328628551,1717630238151,-1000.0,0.00022,2]
[328628552,1717630238161,-624.16065565,0.000221,2]
[328628553,1717630238170,-265.83975183,0.00022108,2]
[328628554,1717630238180,-448.71420493,0.00022242,2]
[328628555,1717630238190,-4235.50878984,0.00022306,2]
[328628556,1717630238200,-166.666666,0.00022431,2]
[328628557,1717630238210,-329.73819371,0.00022499,2]
[328628558,1717630238220,-396.5642368,0.00022499,2]
[328628559,1717630238229,-479.36008244,0.00022499,2]
[328628560,1717630238239,-500.0,0.00022499,2]
[328628561,1717630238248,-500.0,0.00022499,2]
[328628562,1717630238258,-500.0,0.00022499,2]
[328628563,1717630238268,-500.0,0.00022499,2]
[328628564,1717630238278,-366.49338309,0.00022499,2]
[328628565,1717630238287,-571.68068282,0.00022499,2]
[328628566,1717630238297,-582.84576383,0.00022499,2]
[328628567,1717630238307,-500.0,0.00022499,2]
[328628568,1717630238317,-500.0,0.00022499,2]
[328628569,1717630238328,-366.87356577,0.00022499,2]
[328628570,1717630238337,-578.58770405,0.00022499,2]
[328628571,1717630238347,-500.0,0.00022499,2]
[328628572,1717630238357,-464.07675592,0.00022499,2]
[328628573,1717630238367,-270.0,0.000225,2]
[328628574,1717630238376,-4597.80133485,0.000225,2]
[328628575,1717630238389,-7560.64036537,0.000225,2]
[328628650,1717630245282,-19711.03344839,0.000225,2]
[328628652,1717630245292,-1099.91705711,0.00022799,2]
[328628654,1717630245303,-7900.09596469,0.00022799,2]
[328628656,1717630245312,-13039.71473077,0.000228,7]
[328628659,1717630245323,-7924.6523278,0.000228,7]
[328628662,1717630245342,-660.13611287,0.000228,7]
[328628665,1717630245354,-71895.43181597,0.000228,2]
[328628667,1717630245368,-5937.7670316,0.000228,2]
[328628770,1717630245810,-1438.26981577,0.000228,2]
[328628793,1717630245984,-69211.11029228,0.000228,2]
[328628796,1717630245995,-265.83975183,0.00022844,2]
[328628799,1717630246005,-166.666666,0.00022944,2]
[328628801,1717630246015,-243.19151,0.00023041,2]
[328628803,1717630246025,-620.00038379,0.00023118,2]
[328628805,1717630246035,-448.71420493,0.00023407,2]
[328628807,1717630246045,-166.666666,0.00023456,2]
[328628809,1717630246054,-1000.0,0.000235,2]
[328628811,1717630246064,-151.0,0.0002365,2]
[328628813,1717630246073,-151.0,0.0002365,2]
[328628816,1717630246083,-26854.23805134,0.0002365,3]
[328628818,1717630246096,-399.68121786,0.0002365,3]
[328628823,1717630246140,-1661.65706179,0.0002365,3]
[328628833,1717630246281,-6033.42114777,0.0002365,3]
[328628841,1717630246505,-0.19969016,0.0002365,3]
[328628871,1717630283447,302.73262901,9.999e-05,2]
[328628872,1717630303308,154.9690062,9.999e-05,2]
[328628873,1717630311078,187.72279245,9.999e-05,2]
[328628926,1717631026604,500.0,0.00029642,40]
[328628931,1717631127266,13073.12875007,0.00029642,40]
[328629066,1717631433468,-2408.71611034,0.00018498,2]
[328629067,1717631433478,-3425.96462458,0.00018499,2]
[328629068,1717631433494,-21474.03537542,0.00018499,2]
[328629069,1717631433504,-3000.0,0.00018854,2]
[328629070,1717631433513,-223.413614,0.00018866,2]
[328629071,1717631433522,-158.990198,0.00019178,2]
[328629072,1717631433531,-10830.8,0.000195,2]
[328629073,1717631433541,-1752.90420486,0.0002,2]
[328629084,1717631439782,500.0,0.00029643,40]
[328629125,1717631441567,-1000.0,0.0002,2]
[328629143,1717631448386,500.0,0.00029643,40]
[328629144,1717631448672,500.0,0.00029643,40]
[328629145,1717631448947,397.14,0.00029643,40]
[328629148,1717631459418,529.88558446,9.999e-05,2]
[328629153,1717631479199,837.58667401,9.999e-05,2]
[328629154,1717631485521,1154.95106725,9.999e-05,2]
[328629157,1717631492495,2035.47539269,9.999e-05,2]
[328629158,1717631495347,500.0,0.00029643,40]
[328629159,1717631495900,500.0,0.00029643,40]
[328629160,1717631506083,685.91650968,9.999e-05,2]
[328629162,1717631513275,164.52045217,9.999e-05,2]
[328629163,1717631516273,552.05664198,9.999e-05,2]
[328629169,1717631524331,500.0,0.00029643,40]
[328629170,1717631524628,366.94,0.00029643,40]
[328629173,1717631530824,500.0,0.00029643,40]
[328629177,1717631536167,500.0,0.00029643,40]
[328629197,1717631560315,500.0,0.00029643,40]
[328629198,1717631560355,500.0,0.00029643,40]
[328629199,1717631560880,500.0,0.00029643,40]
[328629200,1717631561198,500.0,0.00029643,40]
[328629201,1717631561499,594.9,0.00029643,40]
[328629209,1717631582831,571.46,0.00029643,40]
[328629216,1717631598908,500.0,0.00029643,40]
[328629221,1717631607316,500.0,0.00029643,40]
[328629223,1717631607568,500.0,0.00029643,40]
[328629224,1717631607871,500.0,0.00029643,40]
[328629225,1717631608141,500.0,0.00029643,40]
[328629226,1717631608415,497.58,0.00029643,40]
[328629228,1717631609519,500.0,0.00029643,40]
[328629229,1717631609791,500.0,0.00029643,40]
[328629240,1717631623315,500.0,0.00029643,40]
[328629247,1717631629647,500.0,0.00029643,40]
[328629248,1717631629916,500.0,0.00029643,40]
[328629261,1717631641527,500.0,0.00029643,40]
[328629268,1717631643866,1500.37733008,9.999e-05,2]
[328629272,1717631644885,500.0,0.00029643,40]
[328629274,1717631645150,485.66316814,0.00029643,40]
[328629275,1717631647345,500.0,0.00029643,40]
[328629276,1717631647747,500.0,0.00029643,40]
[328629277,1717631648020,500.0,0.00029643,40]
[328629278,1717631648313,103.79140895,0.00029643,40]
[328629283,1717631658828,187.72279245,9.999e-05,2]
[328629305,1717631678242,411.29938372,9.999e-05,2]
[328629414,1717632045361,3468.83104629,9.999e-05,2]
[328629425,1717632079635,200.30096632,9.999e-05,2]
[328629645,1717632632358,-737.07255667,0.00017839,2]
[328629646,1717632632452,-848.54825264,0.00017839,2]
[328629675,1717632641913,-1270.34,0.00017839,2]
[328629693,1717632753766,330.06805643,0.00017886,7]
[328629694,1717632812933,165.03402822,0.00017838,7]
[328629696,1717632873297,165.03402821,0.00017838,7]
[328629708,1717633004966,-11089.38713808,0.00014999,2]
[328629709,1717633005008,-2474.18319146,0.00015,2]
[328629711,1717633061384,10000.0,0.000298,120]
[328629716,1717633114181,955.50001342,0.00017838,7]
[328629722,1717633171788,140000.0,0.000298,120]
[328629723,1717633172791,477.75000671,0.00017837,7]
[328629809,1717633832365,-287.92256871,0.00016707,2]
[328629810,1717633832377,-250.0,0.00016707,2]
[328629811,1717633832393,-1586.21617874,0.00016707,2]
[328629813,1717633832404,-735.55079758,0.00016707,2]
[328629814,1717633832415,-3000.563174,0.00016707,2]
[328629815,1717633832429,-1625.07953707,0.00016707,2]
[328629816,1717633832440,-197.6975248,0.00016859,2]
[328629817,1717633832450,-197.103474,0.00017215,2]
[328629818,1717633832460,-495.75174404,0.00017573,2]
[328629819,1717633832470,-24900.0,0.00017611,2]
[328629820,1717633832480,-220.22880518,0.00017798,2]
[328629821,1717633832489,-77957.37048725,0.000178,2]
[328629892,1717634236064,15570.75816715,0.00025,120]
[328629893,1717634236116,17736.10589447,0.00025,120]
[328629902,1717634278562,166.588639,0.00027671,120]
[328629917,1717634733419,-197.103475,0.00016843,2]
[328629918,1717634733440,-19295.71550655,0.00016853,2]
[328629919,1717634733462,-13683.06101845,0.00016854,2]
[328629923,1717634765536,3069.90171711,9.999e-05,2]
[328629925,1717634787249,411.29938372,9.999e-05,2]
[328630053,1717635032642,-386.01217285,0.00015,2]
[328630054,1717635032661,-713.90488426,0.00015,2]
[328630055,1717635032673,-11216.93898155,0.00016854,2]
[328630056,1717635032683,-4235.50878984,0.00017266,2]
[328630057,1717635032693,-6020.50184927,0.00017737,2]
[328630058,1717635032702,-41541.6678027,0.000178,2]
[328630059,1717635032716,-7724.62623803,0.000178,2]
[328630084,1717635042622,-503.96475741,0.000178,2]
[328630106,1717635046705,-0.43799592,0.000178,2]
[328630111,1717635067867,309.81411154,9.999e-05,2]
[328630112,1717635078864,2119.81632038,9.999e-05,2]
[328630114,1717635108252,154.9690062,9.999e-05,2]
[328630115,1717635116145,1982.29671203,9.999e-05,2]
[328630116,1717635123345,285.68480276,9.999e-05,2]
[328630117,1717635126414,553.92830514,9.999e-05,2]
[328630272,1717635933662,-668.9221501,0.0003,120]
[328630273,1717635933694,-328.5278499,0.0003,120]
[328630281,1717635979921,-328.52,0.0003,120]
[328630282,1717636004018,-328.52,0.0003,120]
[328630283,1717636011927,-14.4321501,0.0003,120]
[328630284,1717636011963,-314.0878499,0.0003,120]
[328630287,1717636052936,238.87500336,0.00017999,7]
[328630288,1717636077514,-3069.90171711,0.00015618,2]
[328630289,1717636077535,-3000.0,0.00015619,2]
[328630290,1717636077558,-334.740181,0.00016251,2]
[328630291,1717636077579,-16487.35810189,0.0001633,2]
[328630308,1717636163046,1500.37733008,9.999e-05,2]
[328630334,1717636231988,-8412.64189811,0.0001633,2]
[328630335,1717636231998,-286.47075578,0.0001633,2]
[328630336,1717636232007,-167.370091,0.00016378,2]
[328630337,1717636232017,-6758.91927669,0.00016615,2]
[328630338,1717636232026,-152.69404178,0.000167,2]
[328630339,1717636232035,-622.69606142,0.00016716,2]
[328630340,1717636232044,-190.06406626,0.00016716,2]
[328630341,1717636232053,-4235.50878984,0.00017518,2]
[328630342,1717636232062,-413.3552853,0.00017798,2]
[328630343,1717636232071,-16963.07802615,0.000178,2]
[328630388,1717636316599,37185.86311737,9.999e-05,2]
[328630389,1717636344144,285.68480276,9.999e-05,2]
[328630457,1717636827117,-212.9952081,0.00016885,2]
[328630458,1717636827157,-15211.5847919,0.0001692,2]
[328630459,1717636864862,302.73262901,9.999e-05,2]
[328630460,1717636880883,1281.11111819,9.999e-05,2]
[328630461,1717636907052,187.72279245,9.999e-05,2]
[328630625,1717637439326,-157.03683052,0.00015,2]
[328630626,1717637439336,-1099.91705711,0.00016582,2]
[328630628,1717637439346,-2118.95938483,0.00016583,2]
[328630629,1717637439358,-22781.04061517,0.00016583,2]
[328630630,1717637439367,-167.3700918,0.00016837,2]
[328630631,1717637439377,-4235.50878984,0.00017343,2]
[328630632,1717637439386,-651.91209011,0.000177,2]
[328630633,1717637439396,-153.0,0.000177,2]
[328630634,1717637439405,-583.9417269,0.000177,2]
[328630635,1717637439415,-29034.49254556,0.000178,2]
[328630650,1717637441885,-24405.65729182,0.000178,2]
[328630651,1717637441897,-7513.62129917,0.000178,2]
[328630689,1717637443700,-290.20029419,0.000178,2]
[328630717,1717637446470,-46.03106104,0.000178,2]
[328630719,1717637455012,954.6677253,9.999e-05,2]
[328630727,1717637492982,203.36331496,0.00017898,7]
[328630730,1717637507868,1139.2171253,0.0001,2]
[328630731,1717637512792,285.73167299,9.999e-05,2]
[328630734,1717637532497,411.37134746,9.999e-05,2]
[328630758,1717637612942,203.36331495,0.00017894,7]
[328630792,1717637651145,187.7557578,9.999e-05,2]
[328630799,1717637679361,207.75,0.00010959,2]
[328630802,1717637684975,150.95471359,0.00022006,30]
[328630803,1717637685034,150.95471359,0.00021566,120]
[328630815,1717637833563,150.03866682,0.0002,120]
[328630817,1717637844337,907.56135959,0.000279,120]
[328630820,1717637968228,-355.0,0.0002547,35]
[328630821,1717637968278,-7050.6,0.000255,60]
[328630822,1717637968532,-355.0,0.0002548,35]
[328630823,1717637999616,150.96980604,0.00022097,30]
[328630825,1717638066025,284.0,0.0002547,35]
[328630826,1717638186467,71.0,0.0002547,35]
[328630827,1717638211098,12627.00832976,0.00017999,7]
[328630833,1717638331571,6313.50416488,0.00017898,7]
[328630845,1717638450928,3156.75208244,0.00017898,7]
[328630890,1717638571462,1578.37604122,0.00018,7]
[328630958,1717638632805,-199.5615711,0.00015858,2]
[328630960,1717638632815,-24900.0,0.00015883,2]
[328630962,1717638632824,-197.8424053,0.00015984,2]
[328630964,1717638632834,-152.3249652,0.00016782,2]
[328630966,1717638632844,-1101.32151246,0.00016881,2]
[328630968,1717638632854,-187.96729035,0.00016882,2]
[328630970,1717638632863,-59548.95244126,0.00016883,2]
[328630972,1717638632872,-908.60986104,0.00017186,2]
[328630974,1717638632882,-323.19600927,0.00017186,2]
[328630975,1717638632891,-736.99853382,0.00017286,2]
[328630977,1717638632900,-4234.27607114,0.00017445,2]
[328630979,1717638632910,-4236.27632862,0.00017445,2]
[328630981,1717638632918,-323.19600926,0.00017543,2]
[328630983,1717638632928,-736.99853382,0.00017734,2]
[328630985,1717638632937,-5574.7313602,0.000178,2]
[328630988,1717638632949,-262.71420731,0.000178,2]
[328630990,1717638632961,-820.00266018,0.000178,2]
[328631079,1717638638650,-15877.49335412,0.000178,2]
[328631080,1717638638662,-797.46,0.000178,2]
[328631081,1717638638674,-4170.68454816,0.000178,2]
[328631137,1717638643842,-6021.86237945,0.000178,2]
[328631138,1717638643856,-3803.81794942,0.000178,2]
[328631139,1717638643867,-13489.04614016,0.000178,2]
[328631142,1717638646836,-409.62136791,0.000178,2]
[328631143,1717638646848,-131834.62506024,0.000178,2]
[328631174,1717638837281,522.88358079,9.999e-05,2]
[328631175,1717638931528,789.18802061,0.00017894,7]
[328631176,1717639051169,394.59401031,0.00017894,7]
[328631178,1717639170520,197.29700515,0.00017892,7]
[328631179,1717639290963,197.29700515,0.00017892,7]
[328631230,1717639832847,-24900.0,0.0001609,2]
[328631232,1717639832856,-240.221162,0.0001659,2]
[328631234,1717639832865,-1628.1313824,0.00016671,2]
[328631236,1717639832875,-12099.56320364,0.00016892,2]
[328631238,1717639832885,-887.03304349,0.000174,2]
[328631240,1717639832894,-153.0,0.000174,2]
[328631242,1717639832903,-153.0,0.000175,2]
[328631244,1717639832915,-153.0,0.000175,2]
[328631246,1717639832924,-4236.27632862,0.00017523,2]
[328631248,1717639832934,-723.0851933,0.00017792,2]
[328631250,1717639832943,-18420.01597404,0.000178,2]
[328631251,1717639832955,-2854.14035952,0.000178,2]
[328631252,1717639832966,-1896.27331591,0.000178,2]
[328631253,1717639832978,-6926.82402391,0.000178,2]
[328631259,1717639838609,154.9690062,9.999e-05,2]
[328631265,1717639838923,-3883.5426312,0.000178,2]
[328631266,1717639838935,-5762.45478442,0.000178,2]
[328631294,1717639843198,-2163.43126643,0.000178,2]
[328631296,1717639843209,-9625.87796091,0.000178,2]
[328631298,1717639843221,-21319.77390727,0.000178,2]
[328631300,1717639843231,-154.98450155,0.000178,2]
[328631302,1717639843240,-4204.32845183,0.000178,2]
[328631303,1717639843249,-758.96911498,0.00017871,2]
[328631305,1717639843259,-207.01708672,0.00017883,2]
[328631307,1717639843268,-243.46149537,0.00017883,2]
[328631309,1717639843277,-29917.01617703,0.00017884,2]
[328631325,1717639844366,-200.0,0.00017883,2]
[328631326,1717639844376,-86187.29330852,0.00017884,2]
[328631327,1717639844385,-292.26760426,0.00017886,2]
[328631328,1717639844395,-713.90488426,0.0001789,2]
[328631329,1717639844405,-38182.99035567,0.00017891,2]
[328631330,1717639844415,-286.51498306,0.00017892,2]
[328631331,1717639844424,-355.635803,0.00017892,2]
[328631332,1717639844433,-355.635803,0.00017892,2]
[328631333,1717639844443,-155.894206,0.00017892,2]
[328631334,1717639844452,-151.0,0.00017892,2]
[328631335,1717639844461,-151.0,0.00017892,2]
[328631336,1717639844470,-151.415105,0.00017892,2]
[328631337,1717639844479,-151.0,0.00017892,2]
[328631338,1717639844489,-151.0,0.00017892,2]
[328631339,1717639844498,-151.0,0.00017892,2]
[328631340,1717639844507,-204.363524,0.00017892,2]
[328631341,1717639844516,-264.376053,0.00017892,2]
[328631342,1717639844525,-264.376053,0.00017892,2]
[328631343,1717639844535,-151.0,0.00017892,2]
[328631344,1717639844544,-31578.7451104,0.00017894,2]
[328631345,1717639844553,-151.0,0.00017894,2]
[328631346,1717639844562,-151.0,0.00017894,2]
[328631347,1717639844571,-153.788886,0.00017894,2]
[328631348,1717639844581,-355.635803,0.00017894,2]
[328631349,1717639844590,-355.635803,0.00017894,2]
[328631350,1717639844600,-159.638056,0.00017894,2]
[328631351,1717639844609,-152.143222,0.00017894,2]
[328631352,1717639844618,-151.0,0.00017894,2]
[328631353,1717639844627,-151.0,0.00017894,2]
[328631354,1717639844636,-227.131913,0.00017894,2]
[328631355,1717639844645,-264.376053,0.00017894,2]
[328631356,1717639844654,-264.376053,0.00017894,2]
[328631357,1717639844663,-151.0,0.00017894,2]
[328631358,1717639844672,-151.0,0.00017894,2]
[328631359,1717639844680,-284.508928,0.00017894,2]
[328631360,1717639844689,-151.0,0.00017894,2]
[328631361,1717639844698,-10482.25493534,0.00017898,2]
[328631362,1717639844707,-710.56668851,0.00018,2]
[328631363,1717639844716,-2762.77347703,0.00018,2]
[328631364,1717639844725,-723.08519326,0.00018044,2]
[328631365,1717639844734,-723.08519326,0.00018296,2]
[328631366,1717639844743,-606.28251401,0.000185,2]
[328631367,1717639844753,-723.08519326,0.00018548,2]
[328631368,1717639844762,-153.0,0.00018685,2]
[328631369,1717639844772,-153.0,0.00018685,2]
[328631370,1717639844782,-887.03304345,0.00018757,2]
[328631371,1717639844792,-153.0,0.00018767,2]
[328631372,1717639844800,-723.08519326,0.000188,2]
[328631373,1717639844810,-151.0,0.000188,2]
[328631374,1717639844819,-151.0,0.000189,2]
[328631375,1717639844829,-154.380599,0.000189,2]
[328631376,1717639844838,-355.635803,0.000189,2]
[328631377,1717639844847,-355.635803,0.000189,2]
[328631378,1717639844856,-151.0,0.000189,2]
[328631379,1717639844866,-5998.14517591,0.000189,2]
[328631380,1717639844875,-151.0,0.000189,2]
[328631381,1717639844884,-264.376053,0.000189,2]
[328631382,1717639844893,-264.376053,0.000189,2]
[328631383,1717639844902,-180.186463,0.000189,2]
[328631384,1717639844912,-151.0,0.000189,2]
[328631385,1717639844922,-10835.7,0.00019,2]
[328631386,1717639844931,-154.1922908,0.00019151,2]
[328631387,1717639844939,-412.41074226,0.00019178,2]
[328631388,1717639844949,-191.91846675,0.00019178,2]
[328631389,1717639844957,-500.0,0.00019178,2]
[328631390,1717639844966,-500.0,0.00019178,2]
[328631391,1717639844975,-500.0,0.00019178,2]
[328631392,1717639844985,-500.0,0.00019178,2]
[328631393,1717639844996,-500.0,0.00019178,2]
[328631394,1717639845006,-500.0,0.00019178,2]
[328631395,1717639845016,-500.0,0.00019178,2]
[328631396,1717639845027,-500.0,0.00019178,2]
[328631397,1717639845036,-500.0,0.00019178,2]
[328631398,1717639845045,-500.0,0.00019178,2]
[328631399,1717639845055,-500.0,0.00019178,2]
[328631400,1717639845065,-630.12142365,0.00019178,2]
[328631401,1717639845074,-500.0,0.00019178,2]
[328631402,1717639845083,-500.0,0.00019178,2]
[328631403,1717639845092,-500.0,0.00019178,2]
[328631404,1717639845101,-500.0,0.00019178,2]
[328631405,1717639845111,-500.0,0.00019178,2]
[328631406,1717639845122,-500.0,0.00019178,2]
[328631407,1717639845131,-456.39909891,0.00019178,2]
[328631408,1717639845146,-500.0,0.00019178,2]
[328631409,1717639845155,-500.0,0.00019178,2]
[328631410,1717639845167,-500.0,0.00019178,2]
[328631411,1717639845176,-500.0,0.00019178,2]
[328631412,1717639845185,-500.0,0.00019178,2]
[328631413,1717639845194,-263.58025087,0.00019178,2]
[328631414,1717639845205,-500.0,0.00019178,2]
[328631415,1717639845213,-500.0,0.00019178,2]
[328631416,1717639845223,-429.19576453,0.00019178,2]
[328631417,1717639845232,-575.69537804,0.00019178,2]
[328631418,1717639845242,-500.0,0.00019178,2]
[328631419,1717639845251,-500.0,0.00019178,2]
[328631420,1717639845260,-500.0,0.00019178,2]
[328631421,1717639845270,-500.0,0.00019178,2]
[328631422,1717639845281,-500.0,0.00019178,2]
[328631423,1717639845292,-172.90580421,0.00019178,2]
[328631424,1717639845303,-500.0,0.00019178,2]
[328631425,1717639845311,-483.71916946,0.00019178,2]
[328631426,1717639845321,-500.0,0.00019178,2]
[328631427,1717639845330,-500.0,0.00019178,2]
[328631428,1717639845339,-500.0,0.00019178,2]
[328631429,1717639845350,-500.0,0.00019178,2]
[328631430,1717639845361,-500.0,0.00019178,2]
[328631431,1717639845372,-500.0,0.00019178,2]